fUST/lending_fUST_20250731
["ID","MTS","AMOUNT","RATE_DAILY","PERIOD"]
[376217052,1753896317761,-166.0,0.00018956,2]
[376217053,1753896319887,-338.28613006,0.00018956,2]
[376217055,1753896332421,-169.14306503,0.00018956,2]
[376217056,1753896333980,-460.0,0.00018956,2]
[376217062,1753896466166,170.179228,0.00013699,2]
[376217069,1753896572686,511.04683904,0.00018387,2]
[376217085,1753896631965,-150.0,0.000189,2]
[376217086,1753896631976,-5471.68032946,0.00018956,2]
[376217241,1753896638224,-3626.50430164,0.00018956,2]
[376217242,1753896638234,-166.0,0.00018971,2]
[376217243,1753896638243,-300.0,0.00019106,2]
[376217244,1753896638253,-1269.0,0.00019107,2]
[376217245,1753896638262,-223.0,0.00019333,2]
[376217246,1753896638271,-200.0,0.00019488,15]
[376217247,1753896638281,-200.0,0.00019488,15]
[376217248,1753896638290,-200.0,0.00019488,15]
[376217249,1753896638299,-200.0,0.00019488,15]
[376217250,1753896638308,-200.0,0.00019488,15]
[376217251,1753896638317,-79.3236205,0.00019488,15]
[376217252,1753896638329,-120.6763795,0.00019488,15]
[376217253,1753896638338,-200.0,0.00019488,15]
[376217254,1753896638348,-200.0,0.00019488,15]
[376217255,1753896638360,-460.0,0.00019699,2]
[376217257,1753896638370,-9107.79212283,0.000197,2]
[376217259,1753896638382,-2108.71326184,0.000197,2]
[376217261,1753896638391,-165.85951563,0.00019796,2]
[376217263,1753896638401,-460.0,0.00019894,2]
[376217265,1753896638411,-460.0,0.00019894,2]
[376217267,1753896638420,-460.0,0.00019894,2]
[376217269,1753896638430,-336.69980554,0.00019894,2]
[376217271,1753896638439,-959.95,0.00019894,2]
[376217273,1753896638448,-460.0,0.00019894,2]
[376217275,1753896638457,-460.0,0.00019894,2]
[376217277,1753896638466,-611.86668017,0.00019894,2]
[376217280,1753896638478,-115.95331983,0.00019894,2]
[376217282,1753896638487,-473.16263731,0.00019894,2]
[376217284,1753896638498,-460.0,0.00019894,2]
[376217286,1753896638508,-460.0,0.00019894,2]
[376217288,1753896638517,-460.0,0.00019894,2]
[376217290,1753896638527,-460.0,0.00019894,2]
[376217292,1753896638536,-460.0,0.00019894,2]
[376217294,1753896638546,-460.0,0.00019894,2]
[376217296,1753896638555,-460.0,0.00019894,2]
[376217298,1753896638565,-460.0,0.00019894,2]
[376217300,1753896638574,-460.0,0.00019894,2]
[376217302,1753896638583,-460.0,0.00019894,2]
[376217304,1753896638592,-416.27003134,0.00019894,2]
[376217306,1753896638605,-43.72996866,0.00019894,2]
[376217308,1753896638615,-460.0,0.00019894,2]
[376217310,1753896638624,-105.19221361,0.00019894,2]
[376217312,1753896638635,-354.80778639,0.00019894,2]
[376217315,1753896638645,-201.06029742,0.00019895,2]
[376217317,1753896638656,-156.91886864,0.00019895,2]
[376217319,1753896638665,-168.34113136,0.00019895,2]
[376217323,1753896638693,-291.65886864,0.00019895,2]
[376217325,1753896638703,-198.63087513,0.00019895,2]
[376217327,1753896638712,-460.0,0.00019895,2]
[376217329,1753896638722,-460.0,0.00019895,2]
[376217331,1753896638732,-460.0,0.00019895,2]
[376217333,1753896638742,-460.0,0.00019895,2]
[376217335,1753896638751,-460.0,0.00019895,2]
[376217337,1753896638760,-460.0,0.00019895,2]
[376217339,1753896638770,-460.0,0.00019895,2]
[376217341,1753896638779,-460.0,0.00019895,2]
[376217343,1753896638788,-1425.47,0.00019895,2]
[376217345,1753896638797,-528.34,0.00019895,2]
[376217347,1753896638806,-454.72026944,0.00019895,2]
[376217349,1753896638815,-237.4209502,0.00019895,2]
[376217351,1753896638823,-460.0,0.00019895,2]
[376217353,1753896638833,-460.0,0.00019895,2]
[376217355,1753896638845,-460.0,0.00019895,2]
[376217358,1753896638856,-460.0,0.00019896,2]
[376217360,1753896638865,-460.0,0.00019896,2]
[376217362,1753896638874,-460.0,0.00019896,2]
[376217364,1753896638883,-460.0,0.00019896,2]
[376217366,1753896638894,-460.0,0.00019896,2]
[376217368,1753896638904,-460.0,0.00019896,2]
[376217370,1753896638913,-460.0,0.00019896,2]
[376217372,1753896638925,-460.0,0.00019896,2]
[376217374,1753896638936,-460.0,0.00019896,2]
[376217376,1753896638945,-460.0,0.00019896,2]
[376217378,1753896638954,-460.0,0.00019896,2]
[376217380,1753896638964,-460.0,0.00019896,2]
[376217382,1753896638973,-460.0,0.00019896,2]
[376217384,1753896638983,-460.0,0.00019896,2]
[376217386,1753896638992,-714.48,0.00019896,2]
[376217388,1753896639002,-460.0,0.00019896,2]
[376217390,1753896639011,-460.0,0.00019896,2]
[376217392,1753896639020,-460.0,0.00019896,2]
[376217394,1753896639030,-460.0,0.00019896,2]
[376217396,1753896639039,-460.0,0.00019896,2]
[376217399,1753896639050,-460.0,0.00019896,2]
[376217400,1753896639059,-460.0,0.00019896,2]
[376217402,1753896639068,-460.0,0.00019896,2]
[376217405,1753896639081,-460.0,0.00019896,2]
[376217407,1753896639090,-460.0,0.00019896,2]
[376217409,1753896639099,-460.0,0.00019896,2]
[376217411,1753896639111,-208.94249236,0.00019896,2]
[376217413,1753896639120,-460.0,0.00019896,2]
[376217415,1753896639129,-460.0,0.00019896,2]
[376217417,1753896639140,-460.0,0.00019896,2]
[376217419,1753896639150,-1494.02,0.00019896,2]
[376217421,1753896639159,-1307.27,0.00019896,2]
[376217423,1753896639169,-460.0,0.00019896,2]
[376217425,1753896639178,-460.0,0.00019896,2]
[376217427,1753896639188,-460.0,0.00019896,2]
[376217429,1753896639198,-460.0,0.00019896,2]
[376217431,1753896639208,-460.0,0.00019896,2]
[376217433,1753896639218,-460.0,0.00019896,2]
[376217435,1753896639227,-460.0,0.00019896,2]
[376217437,1753896639236,-460.0,0.00019896,2]
[376217439,1753896639246,-460.0,0.00019896,2]
[376217441,1753896639255,-272.60733078,0.00019896,2]
[376217508,1753896639883,-187.39266922,0.00019896,2]
[376217510,1753896639893,-460.0,0.00019896,2]
[376217512,1753896639902,-460.0,0.00019896,2]
[376217514,1753896639912,-460.0,0.00019896,2]
[376217516,1753896639922,-460.0,0.00019896,2]
[376217518,1753896639931,-460.0,0.00019896,2]
[376217520,1753896639941,-460.0,0.00019896,2]
[376217522,1753896639951,-176.15082603,0.00019896,2]
[376217546,1753896640169,-486.55917397,0.00019896,2]
[376217548,1753896640179,-289.85200953,0.000199,2]
[376217550,1753896640189,-537.85,0.00019994,2]
[376217552,1753896640198,-464.27,0.00019994,2]
[376217554,1753896640207,-460.0,0.00019997,2]
[376217556,1753896640217,-371.38464717,0.00019997,2]
[376217558,1753896640226,-460.0,0.00019997,2]
[376217560,1753896640235,-460.0,0.00019997,2]
[376217562,1753896640245,-460.0,0.00019997,2]
[376217564,1753896640254,-460.0,0.00019997,2]
[376217566,1753896640264,-460.0,0.00019997,2]
[376217568,1753896640273,-460.0,0.00019997,2]
[376217570,1753896640283,-310.26875273,0.00019997,2]
[376217573,1753896640295,-149.73124727,0.00019997,2]
[376217575,1753896640305,-460.0,0.00019997,2]
[376217577,1753896640314,-460.0,0.00019997,2]
[376217579,1753896640323,-460.0,0.00019997,2]
[376217581,1753896640333,-353.00359273,0.00019997,2]
[376217583,1753896640345,-106.99640727,0.00019997,2]
[376217585,1753896640356,-460.0,0.00019997,2]
[376217588,1753896640366,-460.0,0.00019997,2]
[376217589,1753896640377,-460.0,0.00019997,2]
[376217592,1753896640386,-460.0,0.00019997,2]
[376217594,1753896640395,-460.0,0.00019997,2]
[376217595,1753896640405,-460.0,0.00019997,2]
[376217598,1753896640414,-460.0,0.00019997,2]
[376217599,1753896640423,-465.28091439,0.00019997,2]
[376217602,1753896640432,-460.0,0.00019997,2]
[376217604,1753896640442,-460.0,0.00019997,2]
[376217606,1753896640451,-460.0,0.00019997,2]
[376217608,1753896640460,-460.0,0.00019997,2]
[376217610,1753896640469,-460.0,0.00019997,2]
[376217612,1753896640478,-460.0,0.00019997,2]
[376217613,1753896640488,-460.0,0.00019997,2]
[376217615,1753896640496,-460.0,0.00019997,2]
[376217617,1753896640506,-460.0,0.00019997,2]
[376217619,1753896640515,-460.0,0.00019997,2]
[376217621,1753896640525,-460.0,0.00019997,2]
[376217623,1753896640534,-460.0,0.00019997,2]
[376217626,1753896640543,-460.0,0.00019997,2]
[376217628,1753896640553,-526.45657621,0.00019997,2]
[376217630,1753896640562,-460.0,0.00019997,2]
[376217632,1753896640571,-460.0,0.00019997,2]
[376217634,1753896640580,-460.0,0.00019997,2]
[376217636,1753896640589,-460.0,0.00019997,2]
[376217638,1753896640598,-460.0,0.00019997,2]
[376217640,1753896640607,-460.0,0.00019997,2]
[376217642,1753896640616,-460.0,0.00019997,2]
[376217644,1753896640626,-460.0,0.00019997,2]
[376217646,1753896640635,-460.0,0.00019997,2]
[376217648,1753896640643,-460.0,0.00019997,2]
[376217650,1753896640652,-460.0,0.00019997,2]
[376217652,1753896640662,-463.6029825,0.00019997,2]
[376217654,1753896640672,-460.0,0.00019997,2]
[376217656,1753896640681,-460.0,0.00019997,2]
[376217657,1753896640690,-460.0,0.00019997,2]
[376217659,1753896640699,-460.0,0.00019997,2]
[376217661,1753896640708,-460.0,0.00019997,2]
[376217664,1753896640717,-460.0,0.00019997,2]
[376217666,1753896640727,-476.11467121,0.00019997,2]
[376217668,1753896640736,-460.0,0.00019997,2]
[376217670,1753896640745,-460.0,0.00019997,2]
[376217671,1753896640754,-460.0,0.00019997,2]
[376217674,1753896640763,-460.0,0.00020069,2]
[376217675,1753896640772,-460.0,0.00020069,2]
[376217677,1753896640781,-460.0,0.00020069,2]
[376217679,1753896640791,-460.0,0.00020069,2]
[376217682,1753896640800,-460.0,0.00020069,2]
[376217683,1753896640809,-460.0,0.00020069,2]
[376217686,1753896640819,-460.0,0.00020069,2]
[376217688,1753896640828,-460.0,0.00020069,2]
[376217690,1753896640838,-460.0,0.00020069,2]
[376217691,1753896640851,-460.0,0.00020069,2]
[376217693,1753896640860,-460.0,0.00020069,2]
[376217695,1753896640869,-460.0,0.00020069,2]
[376217697,1753896640878,-460.0,0.00020069,2]
[376217699,1753896640887,-461.69748636,0.00020069,2]
[376217701,1753896640896,-460.0,0.00020069,2]
[376217703,1753896640905,-460.0,0.00020069,2]
[376217705,1753896640915,-460.0,0.00020069,2]
[376217707,1753896640925,-460.0,0.00020069,2]
[376217709,1753896640934,-460.0,0.00020069,2]
[376217712,1753896640943,-460.0,0.00020069,2]
[376217714,1753896640953,-460.0,0.00020069,2]
[376217716,1753896640962,-460.0,0.00020069,2]
[376217718,1753896640971,-460.0,0.00020069,2]
[376217720,1753896640980,-460.0,0.00020069,2]
[376217721,1753896640989,-432.87344374,0.00020069,2]
[376217723,1753896640999,-460.0,0.00020069,2]
[376217726,1753896641008,-460.0,0.00020069,2]
[376217728,1753896641017,-460.0,0.00020069,2]
[376217729,1753896641027,-460.0,0.00020069,2]
[376217731,1753896641036,-460.0,0.00020069,2]
[376217733,1753896641046,-460.0,0.00020069,2]
[376217735,1753896641055,-460.0,0.00020069,2]
[376217737,1753896641064,-460.0,0.00020069,2]
[376217739,1753896641074,-460.0,0.00020069,2]
[376217741,1753896641083,-460.0,0.00020069,2]
[376217743,1753896641092,-460.0,0.00020069,2]
[376217745,1753896641101,-541.58,0.00020069,2]
[376217747,1753896641111,-460.0,0.00020069,2]
[376217749,1753896641120,-460.0,0.00020069,2]
[376217751,1753896641129,-16066.11080433,0.0002007,2]
[376217753,1753896641138,-289.85200951,0.00020141,2]
[376217755,1753896641147,-586.48,0.0002016,3]
[376217757,1753896641157,-303.88409203,0.00020168,2]
[376217759,1753896641167,-959.95,0.00020168,2]
[376217761,1753896641176,-460.0,0.00020168,2]
[376217763,1753896641212,-460.0,0.00020168,2]
[376217765,1753896641222,-727.82,0.00020168,2]
[376217767,1753896641231,-460.0,0.00020168,2]
[376217770,1753896641240,-460.0,0.00020168,2]
[376217771,1753896641250,-460.0,0.00020168,2]
[376217774,1753896641259,-460.0,0.00020168,2]
[376217776,1753896641269,-460.0,0.00020168,2]
[376217778,1753896641278,-460.0,0.00020168,2]
[376217780,1753896641287,-460.0,0.00020168,2]
[376217782,1753896641297,-460.0,0.00020168,2]
[376217784,1753896641306,-460.0,0.00020168,2]
[376217786,1753896641316,-460.0,0.00020168,2]
[376217788,1753896641325,-509.16996968,0.00020169,2]
[376217790,1753896641334,-460.0,0.00020169,2]
[376217792,1753896641345,-460.0,0.00020169,2]
[376217794,1753896641354,-460.0,0.00020169,2]
[376217796,1753896641364,-460.0,0.00020169,2]
[376217798,1753896641373,-460.0,0.00020169,2]
[376217800,1753896641382,-460.0,0.00020169,2]
[376217802,1753896641392,-1425.47,0.00020169,2]
[376217804,1753896641401,-460.0,0.00020169,2]
[376217806,1753896641410,-460.0,0.00020169,2]
[376217808,1753896641419,-460.0,0.00020169,2]
[376217810,1753896641428,-460.0,0.0002017,2]
[376217812,1753896641438,-460.0,0.0002017,2]
[376217814,1753896641447,-460.0,0.0002017,2]
[376217816,1753896641456,-714.48,0.0002017,2]
[376217818,1753896641466,-460.0,0.0002017,2]
[376217820,1753896641475,-460.0,0.0002017,2]
[376217822,1753896641484,-460.0,0.0002017,2]
[376217824,1753896641493,-460.0,0.0002017,2]
[376217826,1753896641503,-460.0,0.0002017,2]
[376217828,1753896641512,-460.0,0.0002017,2]
[376217830,1753896641521,-460.0,0.0002017,2]
[376217832,1753896641531,-460.0,0.0002017,2]
[376217834,1753896641540,-460.0,0.0002017,2]
[376217836,1753896641549,-1494.02,0.0002017,2]
[376217838,1753896641558,-1307.27,0.0002017,2]
[376217840,1753896641568,-460.0,0.0002017,2]
[376217842,1753896641577,-460.0,0.0002017,2]
[376217844,1753896641586,-460.0,0.0002017,2]
[376217846,1753896641595,-460.0,0.0002017,2]
[376217848,1753896641604,-460.0,0.0002017,2]
[376217850,1753896641613,-460.0,0.0002017,2]
[376217852,1753896641622,-460.0,0.0002017,2]
[376217854,1753896641631,-460.0,0.0002017,2]
[376217856,1753896641641,-460.0,0.0002017,2]
[376217858,1753896641651,-460.0,0.0002017,2]
[376217860,1753896641660,-460.0,0.0002017,2]
[376217862,1753896641670,-460.0,0.0002017,2]
[376217864,1753896641679,-662.71,0.0002017,2]
[376217866,1753896641688,-537.85,0.00020268,2]
[376217868,1753896641697,-464.27,0.00020268,2]
[376217882,1753896641815,-460.0,0.00020269,2]
[376217885,1753896641831,-460.0,0.00020269,2]
[376217887,1753896641841,-160.0,0.0002027,2]
[376217889,1753896641855,-460.0,0.00020271,2]
[376217891,1753896641864,-460.0,0.00020271,2]
[376217893,1753896641873,-506.00902275,0.00020271,2]
[376217895,1753896641883,-460.0,0.00020271,2]
[376217897,1753896641893,-460.0,0.00020271,2]
[376217899,1753896641903,-460.0,0.00020271,2]
[376217901,1753896641912,-460.0,0.00020271,2]
[376217903,1753896641922,-460.0,0.00020271,2]
[376217905,1753896641931,-460.0,0.00020271,2]
[376217907,1753896641940,-460.0,0.00020271,2]
[376217909,1753896641950,-460.0,0.00020271,2]
[376217911,1753896641959,-460.0,0.00020271,2]
[376217913,1753896641968,-460.0,0.00020271,2]
[376217915,1753896641977,-460.0,0.00020271,2]
[376217917,1753896641986,-460.0,0.00020271,2]
[376217919,1753896641996,-460.0,0.00020271,2]
[376217921,1753896642006,-460.0,0.00020271,2]
[376217923,1753896642015,-460.0,0.00020271,2]
[376217925,1753896642024,-460.0,0.00020271,2]
[376217927,1753896642034,-460.0,0.00020271,2]
[376217929,1753896642043,-460.0,0.00020271,2]
[376217931,1753896642052,-460.0,0.00020271,2]
[376217932,1753896642062,-460.0,0.00020271,2]
[376217935,1753896642071,-460.0,0.00020271,2]
[376217936,1753896642080,-460.0,0.00020271,2]
[376217939,1753896642090,-460.0,0.00020271,2]
[376217941,1753896642100,-460.0,0.00020271,2]
[376217942,1753896642110,-460.0,0.00020271,2]
[376217944,1753896642119,-460.0,0.00020271,2]
[376217947,1753896642128,-460.0,0.00020271,2]
[376217949,1753896642138,-460.0,0.00020271,2]
[376217951,1753896642147,-460.0,0.00020271,2]
[376217952,1753896642157,-460.0,0.00020271,2]
[376217955,1753896642166,-460.0,0.00020271,2]
[376217957,1753896642175,-460.0,0.00020271,2]
[376217959,1753896642185,-516.50677108,0.00020271,2]
[376217960,1753896642194,-502.94,0.00020271,2]
[376217962,1753896642203,-169.90335859,0.00020283,2]
[376217964,1753896642213,-500.0,0.00020318,2]
[376217967,1753896642223,-460.0,0.00020343,2]
[376217969,1753896642232,-577.61107146,0.00020343,2]
[376217971,1753896642241,-281.51328801,0.00020343,2]
[376217972,1753896642252,-181.51011921,0.00020343,2]
[376217975,1753896642266,-278.48988079,0.00020343,2]
[376217977,1753896642275,-43.51011921,0.00020343,2]
[376218025,1753896642895,-416.48988079,0.00020343,2]
[376218027,1753896642905,-460.0,0.00020343,2]
[376218029,1753896642915,-460.0,0.00020343,2]
[376218031,1753896642927,-460.0,0.00020343,2]
[376218033,1753896642937,-460.0,0.00020343,2]
[376218035,1753896642946,-460.0,0.00020343,2]
[376218038,1753896642955,-460.0,0.00020343,2]
[376218040,1753896642965,-460.0,0.00020343,2]
[376218042,1753896642974,-460.0,0.00020343,2]
[376218044,1753896642984,-518.06,0.00020343,2]
[376218046,1753896642993,-460.0,0.00020343,2]
[376218048,1753896643003,-541.58,0.00020343,2]
[376218050,1753896643013,-460.0,0.00020343,2]
[376218052,1753896643022,-460.0,0.00020343,2]
[376218054,1753896643031,-289.85200951,0.00020383,3]
[376218056,1753896643040,-959.95,0.00020442,2]
[376218058,1753896643049,-727.82,0.00020442,2]
[376218060,1753896643059,-460.0,0.00020442,2]
[376218062,1753896643068,-460.0,0.00020442,2]
[376218064,1753896643077,-111.20180228,0.00020442,2]
[376218067,1753896643092,-165.36703732,0.00020442,2]
[376218069,1753896643102,-460.0,0.00020442,2]
[376218071,1753896643112,-460.0,0.00020442,2]
[376218073,1753896643121,-460.0,0.00020442,2]
[376218075,1753896643131,-1425.47,0.00020443,2]
[376218077,1753896643141,-460.0,0.00020443,2]
[376218079,1753896643150,-460.0,0.00020444,2]
[376218081,1753896643160,-714.48,0.00020444,2]
[376218083,1753896643169,-460.0,0.00020444,2]
[376218085,1753896643179,-460.0,0.00020444,2]
[376218087,1753896643188,-1494.02,0.00020444,2]
[376218089,1753896643198,-1307.27,0.00020444,2]
[376218091,1753896643207,-460.0,0.00020444,2]
[376218093,1753896643217,-479.77,0.00020444,2]
[376218095,1753896643227,-460.0,0.00020444,2]
[376218097,1753896643240,-662.71,0.00020444,2]
[376218099,1753896643250,-500.0,0.00020508,2]
[376218101,1753896643260,-151.0,0.0002054,2]
[376218103,1753896643272,-211.96574251,0.0002054,2]
[376218105,1753896643282,-300.0,0.0002054,2]
[376218107,1753896643291,-300.0,0.0002054,2]
[376218109,1753896643300,-300.0,0.0002054,2]
[376218111,1753896643309,-300.0,0.0002054,2]
[376218113,1753896643318,-300.0,0.0002054,2]
[376218115,1753896643327,-300.0,0.0002054,2]
[376218117,1753896643336,-300.0,0.0002054,2]
[376218119,1753896643346,-300.0,0.0002054,2]
[376218121,1753896643355,-300.0,0.0002054,2]
[376218123,1753896643368,-300.0,0.0002054,2]
[376218125,1753896643377,-300.0,0.0002054,2]
[376218127,1753896643387,-300.0,0.0002054,2]
[376218129,1753896643399,-300.0,0.0002054,2]
[376218131,1753896643409,-300.0,0.0002054,2]
[376218133,1753896643418,-300.0,0.0002054,2]
[376218135,1753896643429,-300.0,0.0002054,2]
[376218137,1753896643439,-300.0,0.0002054,2]
[376218138,1753896643449,-300.0,0.0002054,2]
[376218140,1753896643462,-300.0,0.0002054,2]
[376218142,1753896643473,-300.0,0.0002054,2]
[376218145,1753896643484,-537.85,0.00020542,2]
[376218147,1753896643494,-464.27,0.00020542,2]
[376218149,1753896643504,-460.0,0.00020543,2]
[376218151,1753896643513,-460.0,0.00020543,2]
[376218153,1753896643523,-460.0,0.00020545,2]
[376218155,1753896643532,-460.0,0.00020545,2]
[376218157,1753896643541,-460.0,0.00020545,2]
[376218159,1753896643550,-503.23,0.00020545,2]
[376218161,1753896643560,-495.1,0.00020545,2]
[376218163,1753896643569,-460.0,0.00020545,2]
[376218165,1753896643578,-460.0,0.00020545,2]
[376218167,1753896643588,-274.88781059,0.00020545,2]
[376218169,1753896643597,-460.0,0.00020545,2]
[376218171,1753896643607,-217.42,0.00020545,2]
[376218173,1753896643622,-263.76,0.00020545,2]
[376218175,1753896643631,-310.94,0.00020545,2]
[376218177,1753896643641,-591.79,0.00020545,2]
[376218179,1753896643651,-460.0,0.00020545,2]
[376218181,1753896643660,-226.28167786,0.00020617,2]
[376218183,1753896643669,-541.58,0.00020617,2]
[376218185,1753896643679,-460.0,0.00020617,2]
[376218187,1753896643689,-289.85200951,0.00020624,3]
[376218189,1753896643698,-160.0,0.00020637,2]
[376218191,1753896643709,-959.95,0.00020716,2]
[376218193,1753896643718,-727.82,0.00020716,2]
[376218195,1753896643728,-460.0,0.00020716,2]
[376218197,1753896643737,-460.0,0.00020716,2]
[376218199,1753896643746,-250.07,0.00020716,2]
[376218201,1753896643756,-605.61,0.00020716,2]
[376218203,1753896643765,-1425.47,0.00020717,2]
[376218205,1753896643774,-460.0,0.00020717,2]
[376218207,1753896643784,-714.48,0.00020718,2]
[376218209,1753896643793,-326.95,0.00020718,2]
[376218211,1753896643802,-460.0,0.00020718,2]
[376218213,1753896643812,-1307.27,0.00020718,2]
[376218215,1753896643821,-460.0,0.00020718,2]
[376218217,1753896643830,-479.77,0.00020718,2]
[376218219,1753896643839,-460.0,0.00020718,2]
[376218221,1753896643852,-662.71,0.00020718,2]
[376218223,1753896643863,-165.85951556,0.00020746,2]
[376218225,1753896643872,-160.0,0.00020748,2]
[376218227,1753896643881,-841.2246943,0.00020748,2]
[376218229,1753896643890,-526.76118213,0.00020748,2]
[376218231,1753896643899,-214.95885286,0.00020748,2]
[376218233,1753896643908,-537.85,0.00020816,2]
[376218235,1753896643919,-464.27,0.00020816,2]
[376218237,1753896643929,-460.0,0.00020817,2]
[376218239,1753896643939,-477.71769154,0.00020819,2]
[376218241,1753896643948,-420.0,0.00020824,2]
[376218243,1753896643958,-289.85200951,0.00020866,4]
[376218245,1753896643967,-541.58,0.00020891,2]
[376218248,1753896643977,-460.0,0.00020891,2]
[376218250,1753896643986,-250.42153986,0.000209,2]
[376218252,1753896643995,-959.95,0.0002099,2]
[376218254,1753896644005,-727.82,0.0002099,2]
[376218256,1753896644015,-460.0,0.0002099,2]
[376218258,1753896644025,-460.0,0.0002099,2]
[376218260,1753896644034,-1425.47,0.00020991,2]
[376218262,1753896644043,-460.0,0.00020991,2]
[376218264,1753896644053,-714.48,0.00020992,2]
[376218266,1753896644062,-460.0,0.00020992,2]
[376218268,1753896644073,-1307.27,0.00020992,2]
[376218270,1753896644082,-460.0,0.00020992,2]
[376218272,1753896644091,-460.0,0.00020992,2]
[376218274,1753896644100,-662.71,0.00020992,2]
[376218276,1753896644111,-270.58620648,0.00021,2]
[376218278,1753896644120,-537.85,0.0002109,2]
[376218280,1753896644129,-464.27,0.0002109,2]
[376218282,1753896644138,-289.85200951,0.00021107,4]
[376218284,1753896644147,-541.58,0.00021165,2]
[376218286,1753896644156,-460.0,0.00021165,2]
[376218288,1753896644165,-260.0,0.00021185,2]
[376218290,1753896644175,-959.95,0.00021264,2]
[376218291,1753896644183,-727.82,0.00021264,2]
[376218294,1753896644193,-460.0,0.00021264,2]
[376218295,1753896644203,-460.0,0.00021264,2]
[376218297,1753896644213,-1425.47,0.00021265,2]
[376218299,1753896644222,-460.0,0.00021265,2]
[376218301,1753896644232,-714.48,0.00021266,2]
[376218303,1753896644241,-460.0,0.00021266,2]
[376218305,1753896644250,-1307.27,0.00021266,2]
[376218307,1753896644259,-345.72,0.00021266,2]
[376218309,1753896644269,-460.0,0.00021266,2]
[376218311,1753896644279,-662.71,0.00021266,2]
[376218313,1753896644288,-289.85200951,0.00021348,5]
[376218315,1753896644298,-537.85,0.00021364,2]
[376218317,1753896644307,-464.27,0.00021364,2]
[376218319,1753896644317,-200.0,0.00021399,15]
[376218321,1753896644326,-200.0,0.00021399,15]
[376218323,1753896644336,-200.0,0.00021399,15]
[376218325,1753896644345,-200.0,0.00021399,15]
[376218327,1753896644354,-200.0,0.00021399,15]
[376218329,1753896644365,-200.0,0.00021399,15]
[376218331,1753896644374,-200.0,0.00021399,15]
[376218333,1753896644383,-200.0,0.00021399,15]
[376218335,1753896644392,-200.0,0.00021399,15]
[376218337,1753896644402,-200.0,0.00021399,15]
[376218339,1753896644411,-240.0,0.00021399,15]
[376218341,1753896644422,-541.58,0.00021439,2]
[376218343,1753896644431,-460.0,0.00021439,2]
[376218345,1753896644441,-191.200829,0.00021487,2]
[376218347,1753896644450,-959.95,0.00021538,2]
[376218349,1753896644459,-727.82,0.00021538,2]
[376218351,1753896644468,-460.0,0.00021538,2]
[376218353,1753896644477,-460.0,0.00021538,2]
[376218355,1753896644487,-1425.47,0.00021539,2]
[376218357,1753896644496,-319.78,0.00021539,2]
[376218359,1753896644505,-714.48,0.0002154,2]
[376218361,1753896644514,-460.0,0.0002154,2]
[376218363,1753896644523,-1307.27,0.0002154,2]
[376218365,1753896644533,-460.0,0.0002154,2]